Cogmind - Beta 13 @@@ ROGUE MODE // 2024.06.11 @ 21:46:02 Player: Kat Result: Self-destructed Performance ------------- Evolutions (1) 500 Regions Visited (2) 400 Robots Destroyed (29) 145 Value Destroyed (414) 414 Prototype IDs (0) 0 Alien Tech Used (0) 0 Bonus (-37) -37 TOTAL SCORE: 1422 Bonus ------- Friendly Fire -37 Cogmind --------- Core Integrity 351/400 Matter 260/300 Energy 214/250 System Corruption 0% Temperature Cool (0) Movement Walking (120) Location -9/Materials Parts ------- > --- POWER (1) -------- Ion Engine > --- PROPULSION (2) --- Aluminum Leg Aluminum Leg > --- UTILITY (4) ------ Improved Heat Sink Medium Storage Unit Weight Redist. System > --- WEAPON (2) ------- Beam Cannon > --- INVENTORY (10) --- Light Treads Light Treads Light Treads Light Treads Beam Cannon Assault Rifle Assault Rifle Grenade Launcher Mining Laser Mining Claw Peak State ------------ > --- POWER ------------ Ion Engine > --- PROPULSION ------- Aluminum Leg Aluminum Leg > --- UTILITY ---------- Improved Heat Sink Medium Storage Unit Weight Redist. System > --- WEAPON ----------- Beam Cannon Beam Cannon > --- INVENTORY -------- Light Treads Light Treads Light Treads Light Treads Assault Rifle Assault Rifle Grenade Launcher Mining Laser [Rating: 11] Favorites ----------- Power Ion Engine Engine Ion Engine Propulsion Aluminum Leg Leg Aluminum Leg Utility Small Storage Unit Device Seismic Detector Storage Small Storage Unit Weapon Beam Cannon Energy Gun Medium Laser Energy Cannon Beam Cannon Ballistic Gun Assault Rifle Launcher Grenade Launcher Slashing Weapon Mining Claw Build | -11 -10 -9 ------- Run | Yrd Mat Mat Slots Evolved 2 | . . 2 Power . | . . . Propulsion . | . . . Utility 2 | . . 2 Weapon . | . . . Parts Attached 20 | 7 10 3 Power 2 | 1 1 . Engine 2 | 1 1 . Core . | . . . Reactor . | . . . Propulsion 4 | 2 2 . Treads . | . . . Leg 4 | 2 2 . Wheel . | . . . Hover . | . . . Flight . | . . . Utility 6 | 2 3 1 Device 4 | 1 2 1 Storage 2 | 1 1 . Processor . | . . . Hackware . | . . . Protection . | . . . Artifact . | . . . Weapon 8 | 2 4 2 Energy Gun 1 | 1 . . Energy Cannon 2 | . 2 . Ballistic Gun 3 | 1 2 . Ballistic Cannon . | . . . Launcher 1 | . . 1 Special Weapon . | . . . Impact Weapon . | . . . Slashing Weapon 1 | . . 1 Piercing Weapon . | . . . Special Melee Weapon . | . . . Unidentified Prototypes . | . . . Parts Lost 1 | . 1 . Power 1 | . 1 . Propulsion . | . . . Utility . | . . . Weapon . | . . . Highest Loss Streak 1 | . 1 . To Critical Strikes . | . . . Average Slot Usage (%) 97 | . 98 88 Engine 13 | . 13 11 Leg 27 | . 28 22 Device 14 | . 14 22 Storage 13 | . 14 11 Energy Gun 4 | . 4 . Energy Cannon 15 | . 14 20 Ballistic Gun 7 | . 8 . Naked Turns . | . . . Heaviest Build 22 | 13 22 22 Greatest Support 26 | 20 26 26 Greatest Overweight (x) 2 | 2 1 . Average Overweight (x) . | . . . Largest Inventory Capacity 10 | 8 10 10 Average Capacity 8 | 6 8 10 Most Carried 10 | 5 9 10 Average Carried 7 | 2 7 8 Final Capacity 10 | 8 10 10 Final Carried 10 | 5 9 10 Class Distribution -------------------- 91% | Mutant 8% | Scavenger-Mutant Dominant Class ---------------- Mutant | -10/Materials Scavenger-Mutant | -9/Materials Resources | -11 -10 -9 ----------- Run | Yrd Mat Mat Matter Collected 492 | 276 196 20 Remotely . | . . . Salvage Created 688 | 102 527 59 Parts 56 | 4 40 12 Haulers Intercepted 2 | . 2 . Recyclers Shooed 3 | . 3 . Parts Field Recycled . | . . . Retrieved Matter . | . . . Parts Self-Destructed . | . . . Prevented . | . . . Kills | -11 -10 -9 ------- Run | Yrd Mat Mat Combat Hostiles Destroyed 20 | . 12 8 Guns 8 | . 8 . Cannons 5 | . 4 1 AOE 7 | . . 7 Classes Destroyed 8 | 2 6 . Worker 1 | . 1 . Tunneler 2 | 1 1 . Hauler 2 | . 2 . Recycler 1 | 1 . . Operator 2 | . 2 . Watcher 1 | . 1 . Swarmer 14 | . 6 8 Grunt 6 | . 6 . Best Kill Streak 8 | 2 4 8 Combat Bots Only 8 | . 3 8 Max Kills in Single Turn 5 | 1 1 5 Gunslinging . | . . . Exploded 5 | . . 5 Melee . | . . . Uniques/NPCs Destroyed . | . . . Combat | -11 -10 -9 -------- Run | Yrd Mat Mat Hostile Shots Fired 79 | . 45 34 Missed 29 | . 13 16 Damage Taken 490 | . 320 170 Core 109 | . 60 49 Absorbed by Shields . | . . . Core Remaining (%) 88 | 100 76 . Volleys Fired 59 | 3 52 4 Largest 2 | 2 2 2 Hottest 120 | 70 120 120 Shots Fired 116 | 6 102 8 Gun 77 | 6 71 . Cannon 37 | . 31 6 Launcher 2 | . . 2 Special . | . . . Kinetic 58 | 3 55 . Thermal 56 | 3 47 6 Explosive 2 | . . 2 Electromagnetic . | . . . Robot Hit Streak 6 | 3 6 2 Robot Miss Streak 4 | 3 4 2 Penetration Max . | . . . Secondary Targets 2 | . 2 . Max Gunslinging Chain 1 | . 1 . Shots Hit Robots 62 | 3 56 3 Core Hits 37 | 3 25 9 Critical Kills 1 | . 1 . Critical Parts Destroyed . | . . . Critical Strikes 3 | . 3 . Burn 2 | . 2 . Meltdown 1 | . 1 . Melee Attacks . | . . . Impact . | . . . Slashing . | . . . Piercing . | . . . Sneak Attacks . | . . . Combat Hostiles . | . . . Follow-up Attacks . | . . . Damage Inflicted 1014 | 42 700 272 Guns 462 | 38 424 . Cannons 293 | . 276 17 Explosions 255 | . . 255 Melee . | . . . Ramming 4 | 4 . . Kinetic 338 | 25 313 . Thermal 417 | 13 387 17 Explosive 255 | . . 255 Electromagnetic . | . . . Impact . | . . . Slashing . | . . . Piercing . | . . . Highest Corruption 1 | . 1 . Average Corruption 1 | . 1 . Corruption Purged . | . . . Corruption Blocked . | . . . Effects 11 | . 11 . Message Errors 2 | . 2 . Matter Fused 2 | . 2 . Heat Flow Errors 1 | . 1 . Energy Discharges 1 | . 1 . Parts Rejected 1 | . 1 . Data Loss (minor) 1 | . 1 . Data Loss (major) 1 | . 1 . Misfires 1 | . 1 . Weapon Failures 1 | . 1 . Overload Shots . | . . . Overflow Damage . | . . . Projectiles . | . . . Explosions . | . . . Melee . | . . . Knockbacks . | . . . Impact . | . . . Kinetic . | . . . Secondary . | . . . Self-Inflicted Damage 38 | . . 38 Shots 1 | . . 1 Rammed . | . . . Targets Rammed 1 | 1 . . Kicked 1 | 1 . . Crushed . | . . . Highest Temperature 243 | 18 243 18 Average Temperature 52 | 9 57 10 Received Heat Transfer 69 | . 69 . Siege Activations . | . . . Robots Corrupted . | . . . Combat Hostiles . | . . . Parts Fried . | . . . Impact Corruptions . | . . . Robots Melted 1 | . 1 . Combat Hostiles . | . . . Parts Melted 4 | . 4 . Heat Transferred 1147 | 37 1073 37 Parts Sabotaged . | . . . Parts Stolen . | . . . Parts Stripped . | . . . Power Chain Reactions . | . . . Alert | -11 -10 -9 ------- Run | Yrd Mat Mat Peak Influence 248 | 10 159 248 Initial 50 | . 6 50 Average 73 | 3 77 89 Maximum Alert Level 1 | . . 1 Low Security (%) 98 | 100 100 80 Level 1 1 | . . 19 Level 2 . | . . . Level 3 . | . . . Level 4 . | . . . Level 5 . | . . . High Security . | . . . Max Security . | . . . Squads Dispatched 2 | . 2 . Investigation . | . . . Extermination . | . . . Reinforcement 2 | . 2 . Assault . | . . . Garrison . | . . . Intercept . | . . . Searches Triggered . | . . . Construction Impeded . | . . . Haulers Reinforced . | . . . Active Scanning Responses . | . . . Cargo Convoy Interrupts . | . . . Stealth | -11 -10 -9 --------- Run | Yrd Mat Mat Distress Signals . | . . . Communications Jammed . | . . . Distress Signals . | . . . Times Spotted 32 | . 24 8 Peak Tracking Total 8 | . 3 8 Tactical Retreats 1 | . 1 . Traps | -11 -10 -9 ------- Run | Yrd Mat Mat Traps Triggered 1 | . 1 . Indirectly . | . . . Trap Hack Attempts . | . . . Triggered . | . . . Disarmed . | . . . Reprogrammed . | . . . Reused . | . . . Traps Extracted . | . . . Installed . | . . . Triggered . | . . . Machines | -11 -10 -9 ---------- Run | Yrd Mat Mat Machines Disabled . | . . . Max in Single Turn . | . . . Machines Repaired . | . . . Machines Dismantled . | . . . Machines Sabotaged . | . . . Overloaded Fab Kills . | . . . Hacking | -11 -10 -9 --------- Run | Yrd Mat Mat Machines Accessed 6 | . 6 . Terminals 6 | . 6 . Fabricators . | . . . Repair Stations . | . . . Recycling Units . | . . . Scanalyzers . | . . . Garrison Access . | . . . Total Hacks 20 | . 20 . Successful 12 | . 12 . Failed 8 | . 8 . Catastrophic 1 | . 1 . Database Lockouts . | . . . Manual 20 | . 20 . Terminals 20 | . 20 . Fabricators . | . . . Repair Stations . | . . . Recycling Units . | . . . Scanalyzers . | . . . Garrison Access . | . . . Terminal Hacks 1 | . 1 . Terminal Index 1 | . 1 . Fabricator Hacks . | . . . Repair Station Hacks . | . . . Recycling Unit Hacks . | . . . Scanalyzer . | . . . Garrison Access Hacks . | . . . Unauthorized Hacks 11 | . 11 . Terminals 11 | . 11 . Assimilate 5 | . 5 . Botnet 5 | . 5 . Operators 1 | . 1 . Fabricators . | . . . Repair Stations . | . . . Recycling Units . | . . . Scanalyzers . | . . . Garrison Access . | . . . Data Cores Recovered . | . . . Used . | . . . Hacking Detections 6 | . 6 . Full Trace Events 1 | . 1 . Feedback Events . | . . . Feedback Blocked . | . . . Robot Schematics Acquired . | . . . Robots Built . | . . . Authchips . | . . . Time . | . . . Total Robot Build Rating . | . . . Part Schematics Acquired . | . . . Parts Built . | . . . Authchips . | . . . Time . | . . . Total Part Build Rating . | . . . Parts Repaired . | . . . Time . | . . . Parts Recycled . | . . . Recycled Matter . | . . . Retrieved Matter . | . . . Retrieved Components . | . . . Parts Scanalyzed . | . . . Part Schematics Acquired . | . . . Parts Damaged . | . . . Bothacking | -11 -10 -9 ------------ Run | Yrd Mat Mat Used RIF Installer . | . . . Robots Hacked . | . . . Non-combat . | . . . Combat . | . . . Robot Hacks Applied . | . . . Relay Couplers Released . | . . . Fabnet Peak Effective % . | . . . Robots Rewired . | . . . Allies Hacked . | . . . Hacks Repelled . | . . . Allies | -11 -10 -9 -------- Run | Yrd Mat Mat Total Allies 2 | . 2 . Largest Group 1 | . 1 1 Highest-Rated Group 10 | . 10 10 Highest-Rated Ally 10 | . 10 10 Total Orders . | . . . Ally Attacks . | . . . Total Damage . | . . . Kills . | . . . Allies Corrupted . | . . . Allies Melted 1 | . 1 . Intel | -11 -10 -9 ------- Run | Yrd Mat Mat Robot Analysis Total . | . . . Derelict Logs Recovered . | . . . Drone Launches . | . . . Drone Recoveries . | . . . Exploration | -11 -10 -9 ------------- Run | Yrd Mat Mat Turns Passed 1367 | 86 1169 112 Spaces Moved 794 | 56 663 75 Core 19 | 19 . . Treads . | . . . Legs 775 | 37 663 75 Wheels . | . . . Hover . | . . . Flight . | . . . Fastest Speed 50 | 50 120 120 Average Speed 119 | 106 120 120 Slowest Speed 190 | 150 190 120 Overloaded Moves . | . . . Propulsion Burnouts . | . . . Robots Hopped . | . . . Cave-ins Triggered . | . . . Exploration Rate (%) 35 | 4 92 11 Regions Visited 2 Branch Regions . Pre-discovered Areas . | . . . Known Exits Taken . | . . . Unknown Exits Taken 2 | 1 1 . Scrap Searched . | . . . Spaces Dug . | . . . Terrain Destroyed 18 | . . 18 Melee . | . . . Projectile . | . . . AOE 18 | . . 18 Terrain Rammed . | . . . Walls Destroyed . | . . . Machines Disabled . | . . . Actions | -11 -10 -9 --------- Run | Yrd Mat Mat Total 1103 | 73 942 88 Wait 204 | 2 198 4 Move 792 | 55 662 75 Hop . | . . . Pick Up 14 | 5 9 . Fast Attach 11 | 7 3 1 Attach 3 | . 2 1 Detach 3 | . 1 2 Swap 6 | . 5 1 Drop 10 | . 10 . Fire 59 | 3 52 4 Melee . | . . . Ram . | . . . Kick 1 | 1 . . Crush . | . . . Escape Stasis . | . . . Rewire . | . . . Trap . | . . . Miscellaneous . | . . . Route ------- -11/Scrapyard -10/Materials (discovered 5 exits: [*Mat x3] / [*Min x2]) -9/Materials History --------- Turn | Location | Event 3 | -11/Scrapyard | Discovered new exit (range 15) 87 | -11/Scrapyard | Entered Materials 279 | -10/Materials | Discovered new exit (range 11) 301 | -10/Materials | Build established: Mutant 674 | -10/Materials | Discovered new exit (range 16) 832 | -10/Materials | Discovered new exit (range 3) 972 | -10/Materials | Discovered new exit (range 3) 1149 | -10/Materials | Discovered new exit (range 16) 1256 | -10/Materials | Entered another Materials area 1256 | -9/Materials | Accompanied by 1 ally 1256 | -9/Materials | Evolved 2 slots: Utility x2 1368 | -9/Materials | Self-destructed Last Messages --------------- GOAL=ESCAPE 01261_ T-07 Excavator is excavating. 01271_ Technician 1b reveals location of hidden door. 01329_ Technician 1b reveals location of Explosive Trap. 01338_ S-10 Pest destroyed. 01349_ Technician 1b reports 0b10 security level has risen to 1. 01349_ S-10 Pest destroyed. 01349_ U-05 Engineer lays Concrete. 01350_ The unstable cave ceiling collapses. 01351_ U-05 Engineer builds a Wall. 01352_ Acquired 2 matter. 01353_ Acquired 7 matter. 01355_ U-05 Engineer lays Concrete. 01357_ Acquired 5 matter. 01358_ U-05 Engineer lays Concrete. 01359_ Acquired 6 matter. 01361_ U-05 Engineer builds a Wall. 01366_ Acquired Unknown Slashing Weapon. 01366_ Identified Mining Claw. 01366_ U-05 Engineer lays Concrete. Map ----- +----------------------------------------------------+ | ?????????????????????????????????????????????????? | | ?????????????????????????????#???????????????????? | | ?????????????????????????????"???????????????????? | | ???????????????????????????? ""??????????????????? | | ???????????????????????????? ""??????????????????? | | ???????????????????????????? ??????????????????? | | ???????????????????????????? ???????????????????? | | ???????????????????????????? ???????????????????? | | ?????????????????#####?????? ???????????????????? | | ??????????????#### #####+##??????????????????? | | ??????????????? ^^ #??????????????????? | | ??????????????????? #############??????? | | ??????????????????????? ?????? | | ?????????????????????????## ?????? | | ?????????????????????????## ?????? | | ?????????????????????????## ###########????????? | | ?????????????????????????# %[ #????????########## | | ?????????????????????????# [ ########## = | | ?????????????????????????# == + | | ?????????????????????????# = ########## | | ?????????????????????????# # #????????# [ | | ???????????????????????##### #????????# | | ???????????????????????# [ #????????#####+#### | | ???????????????????????# ! # #?????????????????? | | ???????????????????????# #%##?????????????????? | | ???????????????????????#/@ +*=+?????????????????? | | ???????????????????????#// # ##???????????##+#??? | | ???????????????????????#/ # #????????????# ? | | ???????????????????????# # #????????????# | | ???????????????????????###### #????????????# | | ???????????????????????????? ????????????# | | ???????????????????????????? !???????????? """ " | | ????????????????????????????!!#????????????????" " | | ????????????????????????????##?????????????????" ? | | ?????????????????????????????????????????????????? | | ?????????????????????????????????????????????????? | | ?????????????????????????????????????????????????? | | ?????????????????????????????????????????????????? | | ?????????????????????????????????????????????????? | | ?????????????????????????????????????????????????? | | ?????????????????????????????????????????????????? | | ?????????????????????????????????????????????????? | | ?????????????????????????????????????????????????? | | ?????????????????????????????????????????????????? | | ?????????????????????????????????????????????????? | | ?????????????????????????????????????????????????? | | ?????????????????????????????????????????????????? | | ?????????????????????????????????????????????????? | | ?????????????????????????????????????????????????? | | ?????????????????????????????????????????????????? | +----------------------------------------------------+ Best States ------------- Heat Dissipation 42 Energy Generation 10 Energy Capacity 250 Matter Stores 300 Matter Capacity 300 Sight Range 16 Terrain Scan Density 10 Additional Mass Support 6 Evasion (%) 55 Item Schematics ----------------- None Robot Schematics ------------------ None Fabricated ------------ Nothing Alien Tech Used ----------------- None Achievements -------------- None Challenges ------------ None Game ------ Seed ZhirovScatterSpear Manual? 0 Play Time 00:11:54 Cumulative 32.7 hours Start 2024.06.11 @ 21:34:26 End 2024.06.11 @ 21:46:02 Sessions 1 Manual Loads 0 Difficulty Rogue Special Mode None Game No. 71 Rogue 71 Adventurer 0 Explorer 0 Win Type - Total 0 Types 0/0/0/0/0/0/0/0/0 Lore% 22 Gallery% 27 Achievement% 23 Wizard Run 0 Options --------- Layout 0 ASCII 0 Keyboard 0 Movement Mouse Keybinds 0 Fullscreen 2 Font 18/Terminus Map View 76x50 Zoom Use 0% Tactical HUD 1 Map Filters NONE Filters NONE Steam 1 RUN: 8138010c-7918-48b7-a149-9c8c52db3535